fUST/lending_fUST_20240210
["ID","MTS","AMOUNT","RATE_DAILY","PERIOD"]
[313670308,1707564634872,-486.03262571,0.0002069,2]
[313670330,1707564639357,-994.40372844,0.0002069,2]
[313670331,1707564639370,-7231.50791418,0.0002069,2]
[313670332,1707564639469,-21192.20799437,0.0002069,2]
[313670334,1707564639478,-63422.27,0.00020695,3]
[313670336,1707564639487,-119.44178749,0.00020703,2]
[313670337,1707564639496,-500.0,0.00020703,2]
[313670338,1707564639507,-324.97172566,0.00020703,2]
[313670339,1707564639516,-157.68041091,0.00020703,2]
[313670340,1707564639526,-157.21895557,0.00020703,2]
[313670341,1707564639537,-214.59278982,0.00020703,2]
[313670342,1707564639546,-719.90605727,0.00020703,2]
[313670343,1707564639555,-159.36044535,0.00020703,2]
[313670344,1707564639565,-194.36433721,0.00020703,2]
[313670345,1707564639574,-157.39554893,0.00020703,2]
[313670346,1707564639584,-156.34629283,0.00020703,2]
[313670347,1707564639594,-155.07629189,0.00020703,2]
[313670348,1707564639603,-157.36344546,0.00020703,2]
[313670349,1707564639613,-154.90705577,0.00020703,2]
[313670350,1707564639621,-155.01550155,0.00020703,2]
[313670351,1707564639631,-179.183996,0.00020703,2]
[313670352,1707564639640,-1840.39787426,0.00020704,2]
[313670353,1707564639649,-729.9211333,0.00020705,2]
[313670354,1707564639659,-1017.41110212,0.00020787,2]
[313670355,1707564639668,-86161.6,0.00020788,2]
[313670356,1707564639677,-65098.5009,0.0002079,3]
[313670357,1707564639687,-243.85623125,0.00020802,2]
[313670358,1707564639697,-819.08259399,0.00020803,2]
[313670359,1707564639706,-2403.17570103,0.00020803,2]
[313670360,1707564639715,-473.57736101,0.00020803,2]
[313670361,1707564639724,-155.1661211,0.00020803,2]
[313670362,1707564639734,-4179.85662615,0.00020803,2]
[313670363,1707564639743,-873.68432579,0.00020803,2]
[313670364,1707564639752,-3430.49935032,0.00020803,2]
[313670365,1707564639761,-2822.01569009,0.00020803,2]
[313670366,1707564639771,-904.94287635,0.00020803,2]
[313670367,1707564639780,-159.56350007,0.00020803,2]
[313670368,1707564639789,-333.72168749,0.00020803,2]
[313670369,1707564639798,-523.68160801,0.00020803,2]
[313670370,1707564639808,-193.60007531,0.00020803,2]
[313670371,1707564639824,-3276.83616544,0.00020803,2]
[313670372,1707564639839,-155.06351006,0.00020803,2]
[313670373,1707564639848,-155.09615962,0.00020803,2]
[313670374,1707564639858,-324.18816568,0.00020803,2]
[313670375,1707564639868,-155.02635448,0.00020803,2]
[313670376,1707564639877,-227.15012467,0.00020803,2]
[313670377,1707564639887,-155.80463483,0.00020803,2]
[313670378,1707564639898,-589.79262565,0.00020803,2]
[313670379,1707564639908,-215.90881372,0.00020803,2]
[313670380,1707564639917,-155.44247717,0.00020803,2]
[313670381,1707564639927,-158.34826292,0.00020803,2]
[313670382,1707564639936,-294.51312657,0.00020803,2]
[313670383,1707564639947,-155.06351006,0.00020803,2]
[313670384,1707564639957,-3615.43265752,0.00020803,2]
[313670385,1707564639967,-1859.34294988,0.00020803,2]
[313670386,1707564639976,-299.43213913,0.00020803,2]
[313670387,1707564639986,-957.52987083,0.00020803,2]
[313670388,1707564639996,-155.15782783,0.00020803,2]
[313670389,1707564640005,-17776.6136819,0.00020804,2]
[313670390,1707564640014,-151.0,0.00020804,2]
[313670391,1707564640024,-151.0,0.00020804,2]
[313670392,1707564640033,-5000.0,0.00020805,2]
[313670393,1707564640042,-3500.0,0.00020805,2]
[313670394,1707564640052,-5000.0,0.00020805,2]
[313670395,1707564640061,-5000.0,0.00020805,2]
[313670397,1707564640070,-5000.0,0.00020805,2]
[313670398,1707564640080,-5000.0,0.00020805,2]
[313670399,1707564640094,-5000.0,0.00020805,2]
[313670400,1707564640104,-5000.0,0.00020805,2]
[313670401,1707564640113,-5000.0,0.00020805,2]
[313670402,1707564640123,-95757.46044982,0.00020805,2]
[313670403,1707564640133,-5000.0,0.00020805,2]
[313670404,1707564640143,-5000.0,0.00020805,2]
[313670405,1707564640152,-24259.81272035,0.00020805,2]
[313670406,1707564640163,-5000.0,0.00020805,2]
[313670407,1707564640173,-5000.0,0.00020805,2]
[313670408,1707564640182,-3714.24517783,0.00020805,2]
[313670419,1707564641235,-490.1510355,0.00020685,3]
[313670421,1707564641248,-1772.66856104,0.00020685,3]
[313670423,1707564641260,-1179.31987533,0.00020685,3]
[313670426,1707564641272,-346.20052813,0.00020685,3]
[313670428,1707564641281,-52.25335486,0.00020805,2]
[313670431,1707564641302,-895.0,0.00020805,2]
[313670626,1707564645267,-829.54096983,0.00020805,2]
[313670633,1707564645330,-2880.72930792,0.00020805,2]
[313670701,1707564645991,-966.94831473,0.00020805,2]
[313670910,1707565834400,-682.06862605,0.00018876,2]
[313670911,1707565834413,-2019.82768151,0.00018876,2]
[313670912,1707565834426,-121.68811174,0.00018876,2]
[313670913,1707565834439,-345.41118825,0.00018877,2]
[313670914,1707565834477,-940.05,0.00018877,2]
[313670938,1707565838249,-17.68927236,0.00018877,2]
[313670940,1707565838259,-821.15351128,0.00018878,2]
[313670942,1707565838269,-1479.89706291,0.00018879,2]
[313671016,1707565844942,-163.17551542,0.00018875,2]
[313671018,1707565844951,-2702.29090221,0.00018879,2]
[313671020,1707565844961,-11.91121218,0.00018896,2]
[313671143,1707565846254,-1624.42819365,0.00018896,2]
[313671189,1707565871100,-4104.1168192,0.00018896,2]
[313671190,1707565871153,-524.48563357,0.000189,2]
[313671191,1707565871201,-6783.4746492,0.000195,2]
[313671192,1707565871256,-1115.39137616,0.000195,2]
[313671193,1707565871308,-200.0,0.00019825,2]
[313671194,1707565871577,167.58112914,0.00018895,2]
[313671195,1707565872534,2468.3658084,0.00018895,2]
[313671203,1707566034149,-821.15351128,0.00018893,2]
[313671204,1707566034190,-454.5514813,0.00018893,2]
[313671205,1707566034230,-1688.81025991,0.00018894,2]
[313671206,1707566034270,-1018.7537034,0.00018894,2]
[313671207,1707566034308,-159.38167513,0.00018895,2]
[313671208,1707566034348,-678.94138998,0.00018895,2]
[313671209,1707566034390,-163.17551542,0.00018895,2]
[313671210,1707566034431,-232.5449273,0.00018896,2]
[313671211,1707566034470,-349.65708905,0.000189,2]
[313671212,1707566034511,-200.0,0.00019,2]
[313671213,1707566034550,-1839.5222526,0.00019499,2]
[313671214,1707566034590,-1115.39137616,0.000195,2]
[313671215,1707566034657,-3996.17526771,0.00019998,2]
[313671216,1707566034712,-10076.07475635,0.00019999,2]
[313671217,1707566034761,-154.90705577,0.0002,2]
[313671218,1707566038364,154.90705577,0.0002,2]
[313671221,1707566183793,-678.94138998,0.00019497,2]
[313671222,1707566183830,-163.17551542,0.00019498,2]
[313671223,1707566183869,-231.418886,0.00019498,2]
[313671224,1707566183906,-6927.83262166,0.00019499,2]
[313671225,1707566183943,-1115.39137616,0.000195,2]
[313671233,1707566410399,-678.94138998,0.00019494,2]
[313671234,1707566410433,-163.17551542,0.00019495,2]
[313671235,1707566410467,-1089.16932486,0.000195,2]
[313671236,1707566410504,-7757.9764971,0.0001954,2]
[313671239,1707566570204,-678.94138998,0.00018898,2]
[313671240,1707566570238,-163.17551542,0.00018899,2]
[313671241,1707566570272,-325.55435425,0.000189,2]
[313671252,1707566846094,-681.20070136,0.0002031,2]
[313671253,1707566846114,-678.94138998,0.00020311,2]
[313671254,1707566846134,-3807.09899568,0.00020319,2]
[313671255,1707566846155,-873.43376157,0.00020321,2]
[313671256,1707566846177,-5645.32449163,0.00020513,2]
[313671257,1707566847092,-420.88245924,0.00020513,2]
[313671330,1707567034598,-163.17551542,0.00020507,2]
[313671332,1707567034608,-500.0,0.00020508,2]
[313671334,1707567034617,-678.94138998,0.00020509,2]
[313671336,1707567034626,-3464.0889424,0.00020513,2]
[313671441,1707567038745,-8246.31778863,0.00020513,2]
[313671442,1707567038754,-2091.78651726,0.00020513,2]
[313671443,1707567038764,-300.0,0.00020513,2]
[313671444,1707567038776,-179.183996,0.00020605,2]
[313671445,1707567038785,-288.60739896,0.00020616,2]
[313671446,1707567038794,-553.18192052,0.00020703,2]
[313671447,1707567038803,-155.01550155,0.00020703,2]
[313671448,1707567038813,-295.2276846,0.00020703,2]
[313671449,1707567038822,-261.17070193,0.00020703,2]
[313671450,1707567038832,-182.68783183,0.00020703,2]
[313671451,1707567038841,-4261.19318596,0.00020704,2]
[313671452,1707567038850,-58057.00250231,0.00020705,2]
[313671453,1707567038860,-786.70605685,0.00020705,2]
[313671454,1707567038870,-2011.3488086,0.00020718,2]
[313671455,1707567038880,-193.60007531,0.0002072,2]
[313671456,1707567038889,-227.15012467,0.0002072,2]
[313671457,1707567038898,-523.68160801,0.0002072,2]
[313671458,1707567038907,-299.43213913,0.0002072,2]
[313671459,1707567038917,-155.06351006,0.0002072,2]
[313671460,1707567038927,-155.1661211,0.0002072,2]
[313671461,1707567038937,-155.06351006,0.0002072,2]
[313671462,1707567038946,-155.44247717,0.0002072,2]
[313671463,1707567038957,-155.02635448,0.0002072,2]
[313671464,1707567038966,-324.18816568,0.0002072,2]
[313671465,1707567038975,-873.68432579,0.0002072,2]
[313671466,1707567038984,-159.56350007,0.0002072,2]
[313671467,1707567038992,-589.79262565,0.0002072,2]
[313671468,1707567039001,-473.57736101,0.0002072,2]
[313671469,1707567039156,-243.85623125,0.0002072,2]
[313671470,1707567039166,-155.80463483,0.0002072,2]
[313671471,1707567039175,-3430.49935032,0.0002072,2]
[313671472,1707567039184,-333.72168749,0.0002072,2]
[313671473,1707567039194,-1859.34294988,0.0002072,2]
[313671474,1707567039203,-719.90605727,0.0002072,2]
[313671475,1707567039213,-156.34629283,0.0002072,2]
[313671476,1707567039222,-157.39554893,0.0002072,2]
[313671477,1707567039232,-159.36044535,0.0002072,2]
[313671478,1707567039241,-214.59278982,0.0002072,2]
[313671479,1707567039250,-157.68041091,0.0002072,2]
[313671480,1707567039260,-324.97172566,0.0002072,2]
[313671481,1707567039269,-157.21895557,0.0002072,2]
[313671482,1707567039278,-651.85853467,0.0002072,2]
[313671483,1707567039288,-326.80780786,0.0002072,2]
[313671484,1707567039297,-179.69812551,0.0002072,2]
[313671485,1707567039306,-1925.37107341,0.0002072,2]
[313671486,1707567039315,-167.49696138,0.0002072,2]
[313671487,1707567039324,-1807.04814622,0.0002072,2]
[313671488,1707567039334,-615.90649162,0.0002072,2]
[313671489,1707567039343,-332.43333194,0.0002072,2]
[313671490,1707567039352,-1993.46407044,0.0002072,2]
[313671491,1707567039362,-200.0,0.0002072,2]
[313671492,1707567039371,-1756.21856483,0.0002072,2]
[313671493,1707567039380,-156.3066036,0.0002072,2]
[313671494,1707567039389,-1232.97655624,0.0002072,2]
[313671495,1707567039398,-168.99642605,0.0002072,2]
[313671496,1707567039408,-155.43910183,0.0002072,2]
[313671497,1707567039417,-155.34822475,0.0002072,2]
[313671498,1707567039426,-818.53002952,0.0002072,2]
[313671499,1707567039435,-1017.0754518,0.0002072,2]
[313671500,1707567039444,-450.6193698,0.0002072,2]
[313671501,1707567039454,-195.15493052,0.0002072,2]
[313671502,1707567039463,-158.83707765,0.0002072,2]
[313671503,1707567039472,-231.33829203,0.0002072,2]
[313671504,1707567039481,-157.52927395,0.0002072,2]
[313671505,1707567039490,-215.90881372,0.00020721,2]
[313671506,1707567039499,-158.34826292,0.00020721,2]
[313671507,1707567039508,-294.51312657,0.00020721,2]
[313671508,1707567039517,-155.15782783,0.00020721,2]
[313671509,1707567039527,-957.52987083,0.00020721,2]
[313671510,1707567039536,-904.94287635,0.00020721,2]
[313671511,1707567039545,-155.09615962,0.00020721,2]
[313671512,1707567039554,-200.0032966,0.000208,2]
[313671513,1707567039564,-7167.77456744,0.00020805,2]
[313671514,1707567039573,-5000.0,0.00020805,2]
[313671515,1707567039582,-4006.60620141,0.00020805,2]
[313671516,1707567039591,-5000.0,0.00020805,2]
[313671517,1707567039601,-5000.0,0.00020805,2]
[313671518,1707567039610,-2575.31383642,0.00020805,2]
[313671519,1707567039619,-4343.50914815,0.00020805,2]
[313671520,1707567039628,-5000.0,0.00020805,2]
[313671521,1707567039638,-50000.0,0.00020805,2]
[313671522,1707567039647,-50000.0,0.00020805,2]
[313671523,1707567039656,-151.0,0.00020805,2]
[313671524,1707567039665,-151.0,0.00020805,2]
[313671525,1707567039674,-151.0,0.00020805,2]
[313671526,1707567039683,-151.0,0.00020805,2]
[313671527,1707567039692,-151.0,0.00020805,2]
[313671528,1707567039702,-244.085893,0.00020805,2]
[313671529,1707567039711,-151.0,0.00020805,2]
[313671530,1707567039722,-151.0,0.00020805,2]
[313671531,1707567039731,-151.0,0.00020805,2]
[313671532,1707567039740,-151.0,0.00020805,2]
[313671533,1707567039749,-151.0,0.00020805,2]
[313671534,1707567039759,-202.701151,0.00020805,2]
[313671535,1707567039771,-23369.04334213,0.00020805,2]
[313671536,1707567039780,-5000.0,0.00020805,2]
[313671537,1707567039789,-5000.0,0.00020805,2]
[313671538,1707567039799,-1990.435964,0.00020805,2]
[313671539,1707567039809,-1990.435964,0.00020805,2]
[313671540,1707567039818,-1990.435964,0.00020805,2]
[313671541,1707567039827,-1990.435964,0.00020805,2]
[313671542,1707567039837,-1990.435964,0.00020805,2]
[313671543,1707567039847,-1990.435964,0.00020805,2]
[313671544,1707567039857,-1990.435964,0.00020805,2]
[313671545,1707567039866,-1990.435964,0.00020805,2]
[313671546,1707567039875,-1990.435964,0.00020805,2]
[313671547,1707567039885,-1990.435964,0.00020805,2]
[313671548,1707567039894,-1990.435964,0.00020805,2]
[313671549,1707567039903,-1990.435964,0.00020805,2]
[313671550,1707567039912,-1990.435964,0.00020805,2]
[313671551,1707567039923,-1990.435964,0.00020805,2]
[313671552,1707567039932,-1990.435964,0.00020805,2]
[313671553,1707567039942,-1990.435964,0.00020805,2]
[313671554,1707567039950,-5000.0,0.00020805,2]
[313671555,1707567039960,-583.721976,0.00020805,2]
[313671556,1707567039969,-583.721976,0.00020805,2]
[313671557,1707567039978,-583.721976,0.00020805,2]
[313671558,1707567039987,-583.721976,0.00020805,2]
[313671559,1707567039996,-583.721976,0.00020805,2]
[313671560,1707567040005,-583.721976,0.00020805,2]
[313671561,1707567040014,-583.721976,0.00020805,2]
[313671562,1707567040024,-583.721976,0.00020805,2]
[313671563,1707567040032,-583.721976,0.00020805,2]
[313671564,1707567040041,-583.721976,0.00020805,2]
[313671565,1707567040050,-583.721976,0.00020805,2]
[313671566,1707567040059,-583.721976,0.00020805,2]
[313671567,1707567040068,-583.721976,0.00020805,2]
[313671568,1707567040078,-583.721976,0.00020805,2]
[313671569,1707567040087,-583.721976,0.00020805,2]
[313671570,1707567040096,-583.721976,0.00020805,2]
[313671571,1707567040105,-1837.0,0.00020805,2]
[313671572,1707567040114,-262.79789,0.00020805,2]
[313671573,1707567040123,-262.79789,0.00020805,2]
[313671574,1707567040132,-262.79789,0.00020805,2]
[313671575,1707567040142,-262.79789,0.00020805,2]
[313671576,1707567040151,-262.79789,0.00020805,2]
[313671577,1707567040160,-262.79789,0.00020805,2]
[313671578,1707567040170,-262.79789,0.00020805,2]
[313671579,1707567040179,-262.79789,0.00020805,2]
[313671580,1707567040189,-262.79789,0.00020805,2]
[313671581,1707567040198,-262.79789,0.00020805,2]
[313671582,1707567040207,-262.79789,0.00020805,2]
[313671583,1707567040217,-262.79789,0.00020805,2]
[313671584,1707567040226,-262.79789,0.00020805,2]
[313671585,1707567040235,-262.79789,0.00020805,2]
[313671586,1707567040244,-262.79789,0.00020805,2]
[313671587,1707567040254,-262.79789,0.00020805,2]
[313671588,1707567040263,-262.79789,0.00020805,2]
[313671589,1707567040272,-262.79789,0.00020805,2]
[313671590,1707567040281,-30659.13406257,0.00020805,2]
[313671591,1707567040290,-50000.0,0.00020805,2]
[313671592,1707567040299,-50000.0,0.00020805,2]
[313671593,1707567040309,-50000.0,0.00020805,2]
[313671594,1707567040318,-5000.0,0.00020805,2]
[313671595,1707567040327,-5218.289304,0.00020805,2]
[313671596,1707567040337,-5218.289304,0.00020805,2]
[313671597,1707567040346,-5218.289304,0.00020805,2]
[313671598,1707567040355,-5218.289304,0.00020805,2]
[313671599,1707567040365,-5218.289304,0.00020805,2]
[313671600,1707567040374,-5218.289304,0.00020805,2]
[313671601,1707567040383,-5218.289304,0.00020805,2]
[313671602,1707567040393,-5218.289304,0.00020805,2]
[313671603,1707567040402,-5218.289304,0.00020805,2]
[313671604,1707567040411,-5218.289304,0.00020805,2]
[313671605,1707567040421,-5218.289304,0.00020805,2]
[313671606,1707567040430,-5218.289304,0.00020805,2]
[313671607,1707567040439,-5218.289304,0.00020805,2]
[313671608,1707567040449,-5218.289304,0.00020805,2]
[313671609,1707567040459,-5218.289304,0.00020805,2]
[313671610,1707567040468,-5218.289304,0.00020805,2]
[313671611,1707567040478,-5218.289304,0.00020805,2]
[313671612,1707567040487,-5218.289304,0.00020805,2]
[313671613,1707567040496,-5218.289304,0.00020805,2]
[313671614,1707567040505,-5218.289297,0.00020805,2]
[313671615,1707567040514,-5000.0,0.00020805,2]
[313671616,1707567040523,-151.0,0.00020805,2]
[313671617,1707567040532,-151.0,0.00020805,2]
[313671618,1707567040541,-151.0,0.00020805,2]
[313671619,1707567040550,-151.0,0.00020805,2]
[313671620,1707567040558,-151.0,0.00020805,2]
[313671621,1707567040567,-151.0,0.00020805,2]
[313671622,1707567040577,-278.986258,0.00020805,2]
[313671623,1707567040587,-151.0,0.00020805,2]
[313671624,1707567040596,-155.887864,0.00020805,2]
[313671625,1707567040605,-151.0,0.00020805,2]
[313671626,1707567040614,-151.0,0.00020805,2]
[313671627,1707567040623,-151.0,0.00020805,2]
[313671628,1707567040632,-151.0,0.00020805,2]
[313671629,1707567040642,-151.0,0.00020805,2]
[313671630,1707567040651,-189.210203,0.00020805,2]
[313671631,1707567040660,-500.0,0.00020822,2]
[313671633,1707567040670,-500.0,0.00020822,2]
[313671635,1707567040679,-500.0,0.00020822,2]
[313671636,1707567040688,-500.0,0.00020822,2]
[313671637,1707567040697,-500.0,0.00020822,2]
[313671638,1707567040706,-500.0,0.00020822,2]
[313671639,1707567040716,-500.0,0.00020822,2]
[313671641,1707567040725,-500.0,0.00020822,2]
[313671642,1707567040734,-500.0,0.00020822,2]
[313671643,1707567040743,-500.0,0.00020822,2]
[313671644,1707567040752,-500.0,0.00020822,2]
[313671645,1707567040762,-500.0,0.00020822,2]
[313671646,1707567040773,-383.38166381,0.00020822,2]
[313671647,1707567040782,-500.0,0.00020822,2]
[313671648,1707567040791,-500.0,0.00020822,2]
[313671649,1707567040800,-361.47610407,0.00020822,2]
[313671650,1707567040809,-500.0,0.00020822,2]
[313671651,1707567040819,-500.0,0.00020822,2]
[313671652,1707567040828,-500.0,0.00020822,2]
[313671653,1707567040837,-500.0,0.00020822,2]
[313671654,1707567040848,-500.0,0.00020822,2]
[313671655,1707567040858,-500.0,0.00020822,2]
[313671656,1707567040867,-500.0,0.00020822,2]
[313671657,1707567040876,-500.0,0.00020822,2]
[313671658,1707567040885,-500.0,0.00020822,2]
[313671659,1707567040893,-500.0,0.00020822,2]
[313671660,1707567040902,-500.0,0.00020822,2]
[313671661,1707567040911,-500.0,0.00020822,2]
[313671662,1707567040921,-500.0,0.00020822,2]
[313671663,1707567040931,-500.0,0.00020822,2]
[313671664,1707567040940,-507.01054329,0.00020822,2]
[313671665,1707567040949,-500.0,0.00020822,2]
[313671666,1707567040958,-167.96920015,0.00020822,2]
[313671667,1707567040967,-441.41334985,0.00020822,2]
[313671668,1707567040976,-500.0,0.00020822,2]
[313671669,1707567040985,-500.0,0.00020822,2]
[313671670,1707567040994,-500.0,0.00020822,2]
[313671671,1707567041003,-500.0,0.00020822,2]
[313671672,1707567041012,-500.0,0.00020822,2]
[313671673,1707567041021,-500.0,0.00020822,2]
[313671674,1707567041030,-500.0,0.00020822,2]
[313671675,1707567041039,-500.0,0.00020822,2]
[313671676,1707567041049,-372.113429,0.00020822,2]
[313671677,1707567041058,-500.0,0.00020822,2]
[313671678,1707567041067,-500.0,0.00020822,2]
[313671679,1707567041076,-500.0,0.00020822,2]
[313671680,1707567041085,-500.0,0.00020822,2]
[313671681,1707567041094,-500.0,0.00020822,2]
[313671682,1707567041103,-500.0,0.00020822,2]
[313671683,1707567041112,-500.0,0.00020822,2]
[313671684,1707567041121,-500.0,0.00020822,2]
[313671685,1707567041130,-500.0,0.00020822,2]
[313671686,1707567041139,-500.0,0.00020822,2]
[313671687,1707567041148,-500.0,0.00020822,2]
[313671688,1707567041157,-500.0,0.00020822,2]
[313671689,1707567041166,-618.14234594,0.00020822,2]
[313671690,1707567041176,-563.0948896,0.00020822,2]
[313671691,1707567041185,-500.0,0.00020822,2]
[313671692,1707567041194,-500.0,0.00020822,2]
[313671693,1707567041203,-500.0,0.00020822,2]
[313671694,1707567041213,-500.0,0.00020822,2]
[313671695,1707567041222,-500.0,0.00020822,2]
[313671696,1707567041231,-500.0,0.00020822,2]
[313671697,1707567041240,-500.0,0.00020822,2]
[313671698,1707567041249,-500.0,0.00020822,2]
[313671699,1707567041258,-500.0,0.00020822,2]
[313671700,1707567041268,-500.0,0.00020822,2]
[313671701,1707567041277,-500.0,0.00020822,2]
[313671702,1707567041286,-500.0,0.00020822,2]
[313671703,1707567041295,-500.0,0.00020822,2]
[313671704,1707567041305,-500.0,0.00020822,2]
[313671705,1707567041314,-300.0,0.00020822,2]
[313671706,1707567041324,-500.0,0.00020822,2]
[313671707,1707567041333,-500.0,0.00020822,2]
[313671708,1707567041342,-500.0,0.00020822,2]
[313671709,1707567041351,-500.0,0.00020822,2]
[313671710,1707567041361,-500.0,0.00020822,2]
[313671711,1707567041370,-500.0,0.00020822,2]
[313671712,1707567041379,-500.0,0.00020822,2]
[313671713,1707567041388,-200.0,0.00020822,2]
[313671714,1707567041397,-500.0,0.00020822,2]
[313671715,1707567041406,-500.0,0.00020822,2]
[313671716,1707567041416,-500.0,0.00020822,2]
[313671717,1707567041425,-500.0,0.00020822,2]
[313671718,1707567041434,-500.0,0.00020822,2]
[313671719,1707567041443,-200.0,0.00020822,2]
[313671720,1707567041453,-500.0,0.00020822,2]
[313671721,1707567041463,-500.0,0.00020822,2]
[313671722,1707567041473,-500.0,0.00020822,2]
[313671723,1707567041483,-500.0,0.00020822,2]
[313671724,1707567041492,-500.0,0.00020822,2]
[313671725,1707567041501,-500.0,0.00020822,2]
[313671726,1707567041511,-500.0,0.00020822,2]
[313671727,1707567041522,-191.88953663,0.00020822,2]
[313671728,1707567041532,-330.19927445,0.00020822,2]
[313671729,1707567041541,-500.0,0.00020822,2]
[313671730,1707567041550,-376.42115194,0.00020822,2]
[313671731,1707567041559,-500.0,0.00020822,2]
[313671732,1707567041568,-500.0,0.00020822,2]
[313671734,1707567041578,-500.0,0.00020822,2]
[313671735,1707567041587,-500.0,0.00020822,2]
[313671737,1707567041596,-500.0,0.00020822,2]
[313671738,1707567041606,-500.0,0.00020822,2]
[313671739,1707567041615,-500.0,0.00020822,2]
[313671740,1707567041624,-500.0,0.00020822,2]
[313671741,1707567041634,-500.0,0.00020822,2]
[313671742,1707567041643,-500.0,0.00020822,2]
[313671743,1707567041652,-500.0,0.00020822,2]
[313671744,1707567041662,-500.0,0.00020822,2]
[313671745,1707567041671,-550.0,0.00020822,2]
[313671746,1707567041680,-500.0,0.00020822,2]
[313671747,1707567041690,-500.0,0.00020822,2]
[313671748,1707567041699,-500.0,0.00020822,2]
[313671749,1707567041709,-500.0,0.00020822,2]
[313671750,1707567041718,-500.0,0.00020822,2]
[313671751,1707567041727,-500.0,0.00020822,2]
[313671752,1707567041737,-500.0,0.00020822,2]
[313671753,1707567041746,-581.5761251,0.00020822,2]
[313671754,1707567041755,-500.0,0.00020822,2]
[313671755,1707567041766,-500.0,0.00020822,2]
[313671756,1707567041776,-500.0,0.00020822,2]
[313671757,1707567041784,-500.0,0.00020822,2]
[313671758,1707567041794,-500.0,0.00020822,2]
[313671759,1707567041803,-500.0,0.00020822,2]
[313671760,1707567041813,-500.0,0.00020822,2]
[313671761,1707567041822,-298.32698449,0.00020822,2]
[313671762,1707567041832,-500.0,0.00020822,2]
[313671763,1707567041843,-500.0,0.00020822,2]
[313671764,1707567041852,-500.0,0.00020822,2]
[313671765,1707567041862,-500.0,0.00020822,2]
[313671766,1707567041873,-339.93466917,0.00020822,2]
[313671767,1707567041884,-500.0,0.00020822,2]
[313671768,1707567041893,-500.0,0.00020822,2]
[313671769,1707567041902,-500.0,0.00020822,2]
[313671770,1707567041911,-500.0,0.00020822,2]
[313671771,1707567041921,-500.0,0.00020822,2]
[313671772,1707567041930,-500.0,0.00020822,2]
[313671773,1707567041940,-500.0,0.00020822,2]
[313671774,1707567041950,-500.0,0.00020822,2]
[313671775,1707567041961,-500.0,0.00020822,2]
[313671776,1707567041970,-500.0,0.00020822,2]
[313671777,1707567041981,-500.0,0.00020822,2]
[313671778,1707567041990,-500.0,0.00020822,2]
[313671779,1707567042105,-500.0,0.00020822,2]
[313671780,1707567042115,-500.0,0.00020822,2]
[313671781,1707567042125,-500.0,0.00020822,2]
[313671782,1707567042134,-595.16762163,0.00020822,2]
[313671783,1707567042144,-155.25970846,0.00020822,2]
[313671784,1707567042153,-500.0,0.00020822,2]
[313671785,1707567042162,-500.0,0.00020822,2]
[313671786,1707567042172,-500.0,0.00020822,2]
[313671787,1707567042181,-500.0,0.00020822,2]
[313671788,1707567042191,-500.0,0.00020822,2]
[313671789,1707567042200,-567.24674276,0.00020822,2]
[313671790,1707567042210,-500.0,0.00020822,2]
[313671791,1707567042219,-500.0,0.00020822,2]
[313671792,1707567042228,-500.0,0.00020822,2]
[313671793,1707567042237,-500.0,0.00020822,2]
[313671794,1707567042246,-500.0,0.00020822,2]
[313671795,1707567042255,-500.0,0.00020822,2]
[313671796,1707567042264,-500.0,0.00020822,2]
[313671797,1707567042274,-500.0,0.00020822,2]
[313671798,1707567042283,-500.0,0.00020822,2]
[313671799,1707567042293,-500.0,0.00020822,2]
[313671800,1707567042302,-1032.72985158,0.00020822,2]
[313671801,1707567042311,-500.0,0.00020822,2]
[313671802,1707567042321,-1032.72985158,0.00020822,2]